bitfinex-derivatives/quotes_ETHF0:USTF0_20241020
["timestamp","ask_amount","ask_price","bid_price","bid_amount"]
[1729436361717,4.36328,2711.3,2711.1,0.36889]
[1729436362013,3.9944,2711.3,2711.1,0.36889]
[1729436362213,3.9944,2711.3,2710.6,0.0008]
[1729436362412,3.9944,2711.3,2711.1,0.3689]
[1729436362714,3.9944,2711.3,2710.6,0.0008]
[1729436362910,3.9944,2711.3,2711.2,0.36889]
[1729436365910,0.7866,2711.3,2711.2,0.36889]
[1729436374626,0.7866,2711.3,2711.2,0.36969]
[1729436379947,4.36328,2711.3,2711.2,0.36969]
[1729436380247,3.9944,2711.3,2711.2,0.36969]
[1729436380741,4.36328,2711.3,2711.2,0.0008]
[1729436380948,3.9944,2711.3,2711.2,0.36969]
[1729436381339,4.36328,2711.3,2711.2,0.36969]
[1729436381957,4.36328,2711.3,2711.2,0.0008]
[1729436383563,1.15548,2711.3,2711.2,0.0008]
[1729436385758,1.15548,2711.3,2711.2,0.36969]
[1729436385953,1.15548,2711.3,2711.2,0.0008]
[1729436387254,1.15548,2711.3,2711.2,0.36969]
[1729436387552,1.15548,2711.3,2711.2,0.0008]
[1729436388935,3.55222356,2711.3,2711.2,0.0008]
[1729436389535,1.15548,2711.3,2711.2,0.0008]
[1729436390142,1.15548,2711.3,2711.2,0.36969]
[1729436390143,3.20026052,2711.3,2711.2,0.36969]
[1729436391146,0.7866,2711.3,2711.2,0.36969]
[1729436391741,3.20411658,2711.3,2711.2,0.36969]
[1729436392552,5.62531658,2711.4,2711.2,3.6888]
[1729436392742,3.90921658,2711.6,2711.5,0.36885]
[1729436392943,1.4917,2711.6,2711.5,0.36885]
[1729436393153,3.2078,2711.9,2711.7,0.36882]
[1729436393154,2.41751658,2711.8,2711.7,0.36882]
[1729436393458,3.84431658,2711.8,2711.7,0.36882]
[1729436395545,2.41751658,2711.8,2711.7,0.36882]
[1729436396148,5.62531658,2711.9,2711.7,0.36882]
[1729436396551,2.41751658,2711.8,2711.7,0.36882]
[1729436397960,3.2078,2711.9,2711.8,0.36881]
[1729436398661,3.5766,2711.9,2711.8,0.36881]
[1729436399062,3.2078,2711.9,2711.8,0.36881]
[1729436399256,3.5766,2711.9,2711.8,0.36881]
[1729436400253,3.2078,2711.9,2711.8,0.36881]
[1729436400461,2.41751658,2712.1,2712.0,0.36878]
[1729436400661,2.41751658,2712.3,2712.2,0.36875]
[1729436400971,1.5306,2712.4,2712.3,0.36874]
[1729436401150,2.41751658,2712.6,2712.5,0.36871]
[1729436401459,2.41751658,2712.6,2712.1,0.92193]
[1729436401460,3.2078,2712.8,2712.7,0.36869]
[1729436402367,0.7679,2712.9,2712.7,3.6864]
[1729436402564,44.37643,2713.2,2712.5,2.45618]
[1729436402767,0.7648,2713.1,2713.0,0.36864]
[1729436403266,3.2078,2713.2,2712.7,0.92172]
[1729436403471,3.2078,2713.2,2713.1,0.36863]
[1729436403765,41.5648,2713.5,2713.4,0.36859]
[1729436403766,0.7648,2713.5,2713.4,0.36859]
[1729436403958,3.57636,2713.7,2713.4,3.6856]
[1729436404267,3.57636,2713.7,2713.0,3.2078]
[1729436404268,1.13334,2713.8,2713.6,0.36856]
[1729436404463,3.2078,2713.7,2713.6,0.36856]
[1729436404968,2.41751658,2714.2,2713.9,0.36852]
[1729436404969,3.2078,2714.0,2713.9,0.36852]
[1729436405165,43.98231658,2714.3,2713.3,4.12932]
[1729436405166,41.5648,2714.3,2713.3,3.2078]
[1729436405468,4.34108,2714.3,2714.0,0.3685]
[1729436405659,3.9726,2714.3,2714.1,0.36849]
[1729436405864,3.9726,2714.3,2714.0,0.36851]
[1729436406064,3.9726,2714.3,2714.0,0.3685]
[1729436406262,3.9726,2714.3,2713.8,0.899]
[1729436406263,0.3685,2714.1,2713.8,0.899]
[1729436406461,3.9726,2714.3,2713.8,0.899]
[1729436406765,0.7648,2714.3,2714.2,0.36848]
[1729436407274,3.2078,2714.7,2714.2,3.684]
[1729436407461,3.2078,2714.7,2714.6,0.36843]
[1729436407660,0.36847,2714.4,2714.1,0.36849]
[1729436407867,0.36851,2714.0,2713.9,3.97801292]
[1729436408072,0.92105,2714.7,2713.6,0.897]
[1729436408073,3.2078,2714.1,2713.6,0.897]
[1729436408260,0.36853,2713.9,2713.6,0.36856]
[1729436408970,0.36852,2714.0,2713.7,0.36854]
[1729436409174,3.2078,2714.1,2713.2,1.5009]
[1729436409370,3.5763,2714.1,2713.8,0.36853]
[1729436409673,3.5763,2714.1,2713.2,2.19789287]
[1729436409674,0.36851,2714.0,2713.5,0.897]
[1729436409873,0.36851,2714.0,2713.7,0.36855]
[1729436410564,3.2078,2714.1,2713.9,0.36851]
[1729436410763,3.2078,2714.1,2713.5,0.897]
[1729436410985,3.2078,2714.1,2714.0,0.36851]
[1729436411365,0.7133,2714.3,2714.2,0.36848]
[1729436412169,3.2078,2714.8,2714.2,3.684]
[1729436412373,3.9902,2714.8,2714.2,0.897]
[1729436412772,1.08483,2714.6,2714.3,0.36846]
[1729436413274,0.7164,2714.6,2714.5,0.36844]
[1729436414972,3.9902,2714.8,2714.6,0.36842]
[1729436415773,3.2078,2714.8,2714.6,0.36842]
[1729436416174,3.2078,2714.8,2714.4,0.897]
[1729436416372,0.36838,2715.0,2714.6,0.36842]
[1729436416680,3.2078,2714.9,2714.6,0.36842]
[1729436416975,0.36837,2715.0,2714.6,0.36842]
[1729436417369,0.36837,2715.0,2714.3,1.26547]
[1729436417569,0.36837,2715.0,2714.7,0.36842]
[1729436417974,3.2078,2714.9,2714.3,0.897]
[1729436418486,3.2078,2714.9,2714.7,0.36841]
[1729436418685,3.2078,2714.9,2714.8,0.3684]
[1729436420172,3.2078,2714.9,2714.8,4.0516]
[1729436420380,2.65491081,2714.9,2714.8,4.0516]
[1729436420572,2.65491081,2714.9,2714.8,4.9486]
[1729436421378,2.65491081,2714.9,2714.8,4.0516]
[1729436421673,0.36844,2714.6,2714.4,0.36845]
[1729436421869,0.7864,2714.5,2714.4,0.36845]
[1729436422272,3.02330081,2714.9,2714.4,3.684]
[1729436422469,3.02330081,2714.9,2714.7,0.36841]
[1729436422869,0.36839,2714.9,2714.7,0.36841]
[1729436423185,1.567,2715.1,2714.8,0.3684]
[1729436423186,0.36838,2715.0,2714.8,0.3684]
[1729436423673,0.36838,2715.0,2714.7,0.36841]
[1729436424178,0.7864,2715.1,2715.0,0.36837]
[1729436424382,0.7864,2715.1,2714.8,0.36839]
[1729436424681,1.15476,2715.1,2714.9,0.36839]
[1729436425583,0.36838,2715.0,2714.8,0.3684]
[1729436425970,0.36838,2715.0,2714.6,0.897]
[1729436425971,1.15477,2715.1,2715.0,0.36837]
[1729436426173,1.15476,2715.1,2715.0,0.36837]
[1729436426374,0.36839,2715.0,2714.8,0.36839]
[1729436426578,6.891,2714.9,2714.3,0.0008]
[1729436426876,0.7101,2715.0,2713.8,3.2078]
[1729436426877,0.36846,2714.4,2713.8,3.2078]
[1729436427079,0.36852,2713.9,2713.8,3.2078]
[1729436427276,42.65577,2714.3,2714.1,0.3685]
[1729436427581,0.36852,2713.9,2713.8,3.2078]
[1729436427876,0.36852,2714.0,2713.8,3.57633]
[1729436428184,0.36852,2714.0,2713.8,3.2078]
[1729436428386,0.36852,2714.0,2713.8,3.57633]
[1729436428685,0.36852,2713.9,2713.8,3.2078]
[1729436428885,0.36852,2713.9,2713.8,3.57634]
[1729436429189,0.36852,2714.0,2713.8,3.57634]
[1729436430085,1.13252,2713.9,2713.8,3.2078]
[1729436430789,1.13252,2713.9,2713.8,3.57634]
[1729436431091,1.13252,2713.9,2713.8,3.2078]
[1729436432179,1.13252,2713.9,2713.8,0.36854]
[1729436432378,1.13252,2713.9,2713.5,4.1048]
[1729436432578,3.9718,2713.9,2713.2,3.2078]
[1729436432780,0.7493,2713.8,2713.2,3.2078]
[1729436432991,0.36859,2713.4,2713.3,0.3686]
[1729436433181,0.36859,2713.4,2713.2,3.57641]
[1729436433385,0.7237,2713.3,2713.2,3.57641]
[1729436433985,1.09231,2713.3,2713.2,3.2078]
[1729436434396,0.7237,2713.3,2712.9,3.57645]
[1729436434585,0.36865,2713.0,2712.9,3.57645]
[1729436434887,0.7237,2713.3,2712.9,3.2078]
[1729436435089,0.7237,2713.3,2713.2,0.36862]
[1729436435585,0.7757,2713.7,2713.6,0.36856]
[1729436436386,3.9707,2713.9,2713.2,0.897]
[1729436436581,3.9707,2713.9,2713.7,0.36855]
[1729436436779,0.36854,2713.8,2713.6,0.36855]
[1729436438093,3.9707,2713.9,2713.2,0.897]
[1729436438386,0.3686,2713.4,2713.2,0.36861]
[1729436438594,0.7554,2713.3,2713.2,0.36861]
[1729436441003,1.12401,2713.3,2713.1,0.70228087]
[1729436441292,0.36862,2713.2,2713.1,0.36863]
[1729436441490,0.7554,2713.3,2712.6,3.2078]
[1729436441694,1.12402,2713.3,2713.2,0.36862]
[1729436442292,1.12402,2713.3,2713.1,0.36862]
[1729436442492,0.36863,2713.2,2713.0,0.36864]
[1729436442692,0.36863,2713.2,2713.1,0.36863]
[1729436442887,0.36863,2713.2,2713.0,0.36863]
[1729436443086,0.36863,2713.2,2713.1,0.36863]
[1729436443284,3.9632,2713.3,2712.7,0.18705136]
[1729436443587,4.33181,2713.3,2713.2,0.36862]
[1729436443783,3.9632,2713.3,2712.7,0.18705136]
[1729436443986,3.9632,2713.3,2713.2,0.36862]
[1729436444795,4.33181,2713.3,2713.2,0.36862]
[1729436445288,3.9632,2713.3,2713.2,0.36862]
[1729436446994,0.7554,2713.3,2713.2,0.36862]
[1729436448506,1.12402,2713.3,2713.1,0.36863]
[1729436448791,0.7554,2713.3,2713.1,0.36863]
[1729436448995,0.7554,2713.3,2712.9,0.6958238]
[1729436448996,1.5084,2713.3,2712.9,0.6958238]
[1729436449198,1.5084,2713.3,2712.5,0.3687]
[1729436449199,4.12943,2713.0,2712.5,0.3687]
[1729436449393,4.12943,2713.0,2712.1,1.5247]
[1729436449394,0.36871,2712.6,2712.1,1.5247]
[1729436449696,3.2078,2712.7,2712.1,2.22288276]
[1729436449697,0.7805,2712.5,2712.1,2.22288276]
[1729436449892,0.36874,2712.4,2712.1,1.44688276]
[1729436450093,0.7805,2712.5,2712.1,1.44688276]
[1729436450298,0.36876,2712.2,2712.0,0.36878]
[1729436450597,0.36875,2712.3,2712.1,0.36876]
[1729436450799,3.9517,2712.4,2712.3,0.36874]
[1729436451100,0.36874,2712.3,2712.1,0.36876]
[1729436451290,4.32043,2712.4,2712.2,0.36875]
[1729436451695,3.2078,2712.4,2712.3,0.36874]
[1729436454398,3.57653,2712.4,2712.3,0.36874]
[1729436454797,3.57653,2712.4,2712.2,0.36874]
[1729436454997,3.2078,2712.4,2712.3,0.36874]
[1729436455605,3.57653,2712.4,2712.3,0.36874]
[1729436457598,3.2078,2712.4,2712.3,0.36874]
[1729436458806,3.57653,2712.4,2712.3,0.36874]
[1729436459405,3.2078,2712.4,2712.3,0.36874]
[1729436460010,4.35701,2712.5,2712.4,0.36873]
[1729436460201,4.35701,2712.5,2712.3,0.36873]
[1729436460808,4.35701,2712.5,2712.0,0.7111]
[1729436461010,4.35701,2712.5,2712.3,0.36873]
[1729436461410,3.9883,2712.5,2712.4,0.36873]
[1729436461813,3.9883,2712.5,2712.1,0.36877]
[1729436462012,4.35702,2712.5,2712.3,0.36873]
[1729436462209,3.2078,2712.5,2712.4,0.36873]
[1729436462409,1.11608,2712.8,2712.7,0.36869]
[1729436462410,0.7474,2712.8,2712.7,0.36869]
[1729436463108,1.4941,2712.8,2712.7,0.36869]
[1729436463609,0.7467,2712.8,2712.7,0.36869]
[1729436463824,1.12881,2713.3,2712.5,3.2078]
[1729436464109,0.7467,2713.2,2713.1,0.36862]
[1729436464812,0.7467,2713.2,2712.7,0.36948]
[1729436464813,0.36863,2713.1,2712.7,0.36948]
[1729436465016,0.36867,2712.8,2712.7,0.0008]
[1729436465307,3.57647,2712.8,2712.7,0.0008]
[1729436465502,0.36873,2712.4,2712.2,0.36875]
[1729436465700,3.2078,2712.5,2711.8,2.1661]
[1729436465904,0.36873,2712.4,2711.8,1.4534]
[1729436466113,0.36875,2712.3,2712.1,0.36877]
[1729436466417,0.36875,2712.3,2711.8,1.4534]
[1729436466615,0.763,2712.2,2711.8,2.15956183]
[1729436466811,0.763,2712.2,2712.1,0.36877]
[1729436467517,3.2078,2712.5,2711.9,0.7127]
[1729436467712,3.2078,2712.5,2712.4,0.36873]
[1729436468115,3.2078,2712.9,2712.4,3.6864]
[1729436468305,3.2078,2712.9,2712.8,0.36867]
[1729436468620,1.12865,2713.0,2712.8,0.36867]
[1729436469217,0.76,2713.0,2712.4,0.894]
[1729436469416,0.7584,2712.9,2712.8,0.36867]
[1729436471307,0.76,2713.0,2712.4,0.68561278]
[1729436471511,0.76,2713.0,2712.9,0.36866]
[1729436476209,1.12865,2713.0,2712.8,0.36866]
[1729436476415,3.9184,2712.9,2712.4,1.6064]
[1729436476621,4.6972,2712.9,2712.4,0.7124]
[1729436476815,5.06587,2712.9,2712.4,0.7124]
[1729436477015,4.6972,2712.9,2712.6,0.36869]
[1729436477211,0.36868,2712.8,2712.6,0.36869]
[1729436477521,5.06587,2712.9,2712.7,0.36869]
[1729436479231,5.06587,2712.9,2712.5,0.36871]
[1729436479232,0.3687,2712.7,2712.5,0.36871]
[1729436479424,0.3687,2712.7,2712.2,1.6378]
[1729436479425,4.6972,2712.9,2712.0,3.2078]
[1729436479729,4.6972,2712.9,2711.9,0.744]
[1729436479730,0.36873,2712.4,2712.3,0.36874]
[1729436479924,0.36874,2712.3,2712.2,0.36875]
[1729436480113,0.7737,2712.3,2712.2,0.36875]
[1729436480823,1.14244,2712.3,2712.2,0.36875]
[1729436481012,0.7737,2712.3,2712.2,0.36875]
[1729436484325,0.7737,2712.3,2711.7,3.2078]
[1729436484515,0.36879,2712.0,2711.9,0.36879]
[1729436485024,1.5239,2712.2,2711.7,4.7865836]
[1729436485025,0.36878,2712.1,2712.0,0.36878]
[1729436486036,1.89266,2712.2,2712.1,0.36877]
[1729436486232,3.2078,2712.0,2710.5,0.9480451]
[1729436486416,0.36897,2710.6,2710.4,0.7795]
[1729436486725,3.2078,2710.7,2710.2,1.13259548]
[1729436486726,3.57677,2710.7,2710.5,0.11536885]
[1729436486916,3.57677,2710.7,2710.1,0.18499317]
[1729436486917,3.2078,2710.7,2710.1,0.18499317]
[1729436487113,3.2078,2710.7,2710.2,0.29997573]
[1729436487313,3.2078,2710.7,2710.6,0.36897]
[1729436487621,0.36898,2710.6,2710.0,3.90714525]
[1729436487926,3.57676,2710.7,2710.4,0.36899]
[1729436488118,3.2078,2710.7,2710.1,0.18565735]
[1729436488315,3.2078,2710.7,2710.6,0.36897]
[1729436488627,3.2078,2710.7,2710.1,0.18565735]
[1729436489030,3.2078,2710.4,2710.3,0.369]
[1729436490216,3.2078,2710.4,2709.9,0.7795]
[1729436490426,0.36901,2710.4,2710.2,0.36903]
[1729436490624,3.57683,2710.3,2710.0,0.36904]
[1729436490822,3.2078,2710.3,2710.0,0.36904]
[1729436491128,3.2078,2710.3,2710.1,0.36904]
[1729436491318,3.2078,2710.3,2710.0,0.36905]
[1729436491319,0.36903,2710.2,2710.0,0.36905]
[1729436491725,3.2078,2710.3,2710.2,0.36903]
[1729436493325,3.2078,2710.3,2709.9,0.7795]
[1729436493540,0.36903,2710.2,2710.0,0.36905]
[1729436493837,0.36903,2710.2,2710.1,0.36904]
[1729436494026,3.2078,2710.3,2710.1,0.36904]
[1729436494227,3.57682,2710.3,2710.1,0.36904]
[1729436494537,0.36904,2710.2,2710.1,0.36904]
[1729436495034,3.57682,2710.3,2710.1,0.36904]
[1729436495422,3.2078,2710.3,2710.2,0.36903]
[1729436498227,3.57682,2710.3,2710.1,0.36904]
[1729436498627,0.36904,2710.2,2710.0,0.36905]
[1729436499331,1.09994,2710.2,2710.0,0.36904]
[1729436499828,0.7309,2710.2,2710.1,0.36904]
[1729436500829,1.09993,2710.2,2710.1,0.36904]
[1729436501130,1.09994,2710.2,2710.0,0.36905]
[1729436501526,0.7309,2710.2,2710.0,0.36905]
[1729436501724,0.36904,2710.1,2710.0,0.36905]
[1729436501926,1.09994,2710.2,2710.0,0.36905]
[1729436502421,1.09994,2710.2,2709.9,1.48809828]
[1729436502627,0.7309,2710.2,2710.1,0.36904]
[1729436502827,1.09993,2710.2,2710.1,0.36904]
[1729436504432,1.09993,2710.2,2710.0,0.36904]
[1729436504433,0.36904,2710.1,2710.0,0.36904]
[1729436504640,0.7309,2710.2,2710.0,0.36904]
[1729436504641,1.09994,2710.2,2710.0,0.36904]
[1729436504947,1.09994,2710.2,2710.1,0.36904]
[1729436506335,1.09994,2710.2,2709.9,0.0008]
[1729436506336,0.36905,2710.0,2709.9,0.0008]
[1729436506635,3.57685,2710.0,2709.9,0.36987]
[1729436506937,3.57685,2710.0,2709.9,0.0008]
[1729436507637,3.57685,2710.0,2709.9,0.36987]
[1729436507933,3.57685,2710.0,2709.9,0.0008]
[1729436508526,7.26725,2710.0,2709.9,0.0008]
[1729436509127,3.57685,2710.0,2709.9,0.36987]
[1729436509326,3.2078,2710.0,2709.9,0.36987]
[1729436511235,3.57685,2710.0,2709.9,0.36987]
[1729436511641,3.2078,2710.0,2709.9,0.36987]
[1729436514240,3.57685,2710.0,2709.9,0.36987]
[1729436514438,3.57685,2710.0,2709.9,0.0008]
[1729436514741,3.2078,2710.0,2709.9,0.36987]
[1729436515739,3.57685,2710.0,2709.9,0.36987]
[1729436516431,3.57685,2710.0,2709.9,0.0008]
[1729436519346,5.57685,2710.0,2709.9,0.0008]
[1729436521446,5.2078,2710.0,2709.9,0.0008]
[1729436521644,5.2078,2710.0,2709.9,0.36987]
[1729436521835,5.57685,2710.0,2709.9,0.36987]
[1729436522035,5.2078,2710.0,2709.9,0.36987]
[1729436522445,5.57685,2710.0,2709.9,0.36987]
[1729436522748,5.2078,2710.0,2709.9,0.0008]
[1729436523051,5.57685,2710.0,2709.9,0.36987]
[1729436523346,5.2078,2710.0,2709.9,0.36987]
[1729436523560,5.57685,2710.0,2709.9,0.36987]
[1729436523938,5.2078,2710.0,2709.9,0.36987]
[1729436524142,2.0,2710.0,2709.9,4.06027]
[1729436524847,2.0,2710.0,2709.9,5.47827]
[1729436526147,2.0,2710.0,2709.9,1.78787]
[1729436526547,2.0,2710.0,2709.9,5.47827]
[1729436526745,1.44613022,2710.0,2709.9,5.47827]
[1729436528148,1.44613022,2710.0,2709.3,5.94653]
[1729436528149,8.34433022,2710.0,2708.9,0.9480451]
[1729436528450,0.36924,2708.6,2708.5,0.7641]
[1729436528654,3.57704,2708.6,2708.5,0.7641]
[1729436528854,3.57704,2708.6,2708.4,0.7136]
[1729436529052,3.2078,2708.6,2708.4,0.7136]
[1729436529355,0.36926,2708.5,2708.4,0.7136]
[1729436529551,0.36926,2708.5,2708.2,0.86097015]
[1729436529552,0.36926,2708.5,2708.3,0.36928]
[1729436530249,3.57705,2708.6,2708.1,0.7641]
[1729436530449,3.57705,2708.6,2708.4,0.36927]
[1729436530645,3.2078,2708.6,2708.1,0.7641]
[1729436530841,3.2078,2708.6,2708.3,0.36928]
[1729436531040,3.2078,2708.6,2708.1,0.7641]
[1729436531255,3.2078,2708.6,2708.4,0.36927]
[1729436531752,3.57704,2708.6,2708.4,0.36927]
[1729436531954,3.2078,2708.6,2708.5,0.36926]
[1729436532158,3.2078,2708.6,2708.4,0.36926]
[1729436532159,3.57704,2708.6,2708.4,0.36926]
[1729436532655,3.2078,2708.6,2708.2,0.3693]
[1729436532948,3.2078,2708.6,2708.4,0.36926]
[1729436533150,3.2078,2708.6,2708.1,1.6240728]
[1729436533354,3.2078,2708.6,2708.3,0.36928]
[1729436533355,0.36926,2708.5,2708.3,0.36928]
[1729436534342,3.2078,2708.6,2708.1,1.6240728]
[1729436534550,0.36926,2708.5,2708.3,0.36928]
[1729436534753,3.2078,2708.6,2708.1,1.6240728]
[1729436534954,0.36928,2708.4,2708.2,0.55403521]
[1729436535146,0.36928,2708.4,2708.2,0.36929]
[1729436535853,0.36926,2708.5,2708.3,0.36929]
[1729436536247,3.57705,2708.6,2708.4,0.36927]
[1729436536442,0.36927,2708.5,2708.1,1.6240728]
[1729436536656,0.36927,2708.5,2708.3,0.36928]
[1729436536853,0.36926,2708.5,2708.3,0.36928]
[1729436537352,3.57705,2708.6,2708.4,0.36927]
[1729436537548,3.2078,2708.6,2708.5,0.36926]
[1729436537744,3.57704,2708.6,2708.5,0.36926]
[1729436538051,3.2078,2708.6,2708.5,0.36926]
[1729436538650,3.57704,2708.6,2708.1,1.6240728]
[1729436538852,3.57704,2708.6,2708.4,0.36927]
[1729436539057,3.2078,2708.6,2708.5,0.36926]
[1729436539762,3.2078,2708.6,2707.8,0.36935]
[1729436539763,3.692,2708.5,2707.8,0.36935]
[1729436539954,3.2078,2708.1,2707.5,0.83186044]
[1729436540155,3.2078,2707.8,2707.6,0.48486165]
[1729436540355,3.2078,2707.8,2707.6,0.36937]
[1729436540356,3.57716,2707.8,2707.6,0.36937]
[1729436540655,0.36939,2707.6,2707.3,0.36941]
[1729436540856,3.2078,2707.5,2707.4,0.36941]
[1729436541449,3.2078,2707.5,2707.3,0.36942]
[1729436541658,3.2078,2707.5,2707.1,3.18391358]
[1729436541961,3.2078,2707.5,2707.4,0.36941]
[1729436542855,3.2078,2707.5,2707.1,2.29191358]
[1729436543055,3.2078,2707.5,2707.3,0.36941]
[1729436543259,3.2078,2707.5,2707.1,2.29191358]
[1729436543860,0.36944,2707.2,2707.1,1.54821358]
[1729436544360,0.36943,2707.3,2707.1,1.91765358]
[1729436544562,3.57724,2707.2,2707.1,1.54821358]
[1729436544859,3.57724,2707.2,2707.1,1.07095]
[1729436545363,3.57724,2707.2,2707.1,0.7015]
[1729436545559,3.57724,2707.2,2707.1,1.07095]
[1729436545858,3.2078,2707.2,2707.1,1.07095]
[1729436546071,3.57724,2707.2,2707.1,1.07095]
[1729436546260,3.57724,2707.2,2707.1,0.7015]
[1729436546462,3.2078,2707.2,2707.0,0.85820737]
[1729436546764,3.2078,2707.2,2707.0,0.36946]
[1729436546765,0.36945,2707.1,2707.0,0.36946]
[1729436547166,3.57725,2707.2,2707.0,0.36946]
[1729436547462,3.57725,2707.2,2706.7,0.7485]
[1729436547655,3.57725,2707.2,2707.0,0.36946]
[1729436548260,0.36947,2707.0,2706.7,0.7485]
[1729436548460,3.2078,2707.2,2706.7,0.7485]
[1729436548660,0.36947,2707.0,2706.8,0.36948]
[1729436548857,0.7479,2707.1,2706.7,0.7485]
[1729436549056,3.57728,2706.9,2706.7,1.11799]
[1729436549257,3.57728,2706.9,2706.8,0.36949]
[1729436549464,3.2078,2706.9,2706.8,0.36949]
[1729436549854,3.2078,2706.9,2706.6,1.21745815]
[1729436549855,0.3695,2706.8,2706.6,1.21745815]
[1729436550056,0.3695,2706.8,2706.3,3.2078]
[1729436550057,3.57729,2706.9,2706.7,0.3695]
[1729436550359,3.2078,2706.9,2706.7,0.3695]
[1729436550762,0.36949,2706.8,2706.7,0.3695]
[1729436551270,0.3695,2706.7,2706.6,0.36951]
[1729436551462,0.6964,2706.8,2706.3,3.2078]
[1729436551660,0.36952,2706.6,2706.4,0.36953]
[1729436551862,0.6964,2706.8,2706.3,3.2078]
[1729436552254,0.36954,2706.5,2706.3,3.2078]
[1729436552557,3.2078,2706.5,2706.1,0.6932]
[1729436552756,0.36957,2706.3,2706.1,0.36958]
[1729436552963,0.3696,2706.0,2705.8,0.36962]
[1729436553364,0.36959,2706.1,2705.8,0.36963]
[1729436553573,3.57742,2705.9,2705.7,0.36963]
[1729436553770,3.2078,2705.9,2705.2,21.91283817]
[1729436554067,3.2078,2705.9,2705.8,0.36963]
[1729436555363,6.9038,2705.9,2705.2,0.86058504]
[1729436555571,0.893,2706.2,2705.5,0.36965]
[1729436555572,3.2078,2705.6,2705.5,0.36965]
[1729436557264,3.2078,2705.9,2705.8,0.36963]
[1729436558263,6.9038,2705.9,2705.8,0.36963]
[1729436558565,7.27342,2705.9,2705.7,0.36963]
[1729436558769,3.2078,2705.9,2705.8,0.36963]
[1729436559066,3.2078,2705.9,2705.1,0.85516208]
[1729436559067,6.9038,2705.9,2705.1,0.85516208]
[1729436559269,42.156,2706.8,2705.4,0.36967]
[1729436559270,3.2078,2705.6,2705.4,0.36967]
[1729436559481,3.57745,2705.6,2705.4,0.36967]
[1729436559665,3.57746,2705.6,2705.4,0.36968]
[1729436560070,3.57746,2705.6,2705.1,1.4677]
[1729436560071,3.696,2705.5,2705.1,0.7117]
[1729436560367,3.2078,2705.3,2705.1,0.7117]
[1729436560575,3.2078,2705.3,2705.2,0.36971]
[1729436561360,3.2078,2705.9,2705.8,0.36963]
[1729436561961,3.2078,2705.9,2705.6,0.36964]
[1729436561962,0.36963,2705.8,2705.6,0.36964]
[1729436562165,6.9038,2705.9,2705.0,0.6736]
[1729436562166,0.6395,2705.7,2705.0,0.6736]
[1729436562457,3.2078,2705.6,2705.4,0.36967]
[1729436562870,3.2078,2705.6,2705.0,2.16901731]
[1729436563066,3.2078,2705.6,2705.5,0.36967]
[1729436565265,3.57741,2706.0,2705.1,0.92431]
[1729436565468,3.2078,2705.7,2705.6,0.36965]
[1729436566769,6.9038,2705.7,2705.1,1.22431954]
[1729436566964,0.6357,2706.1,2705.4,0.36967]
[1729436566965,3.2078,2705.5,2705.4,0.36967]
[1729436567466,3.8821,2705.5,2705.4,0.36967]
[1729436567967,3.8821,2705.5,2705.4,0.36968]
[1729436568171,7.5781,2705.5,2704.8,3.2078]
[1729436568475,0.36968,2705.4,2705.2,0.3697]
[1729436569065,3.8821,2705.5,2704.8,4.05531243]
[1729436569266,4.25178,2705.5,2705.3,0.36969]
[1729436569874,4.25177,2705.5,2705.3,0.36969]
[1729436570166,3.8821,2705.5,2705.4,0.36968]
[1729436570366,3.8821,2705.5,2704.9,0.92438]
[1729436570568,3.8821,2705.5,2705.3,0.36969]
[1729436570768,4.25178,2705.5,2705.3,0.36969]
[1729436572069,0.36972,2705.1,2704.9,0.36974]
[1729436572276,0.36971,2705.3,2705.1,0.36972]
[1729436572468,3.8821,2705.5,2705.1,0.36972]
[1729436572668,0.36969,2705.4,2705.2,0.3697]
[1729436572866,0.3697,2705.3,2705.2,0.3697]
[1729436573067,3.6968,2705.3,2705.2,0.3697]
[1729436573360,0.36969,2705.4,2705.2,0.3697]
[1729436573973,3.8821,2705.5,2704.8,0.84751243]
[1729436574268,3.8821,2705.5,2705.1,0.36972]
[1729436574269,3.2078,2705.2,2705.1,0.36972]
[1729436575170,3.2078,2705.5,2705.4,0.36968]
[1729436580986,3.2078,2705.6,2705.5,0.36967]
[1729436582075,0.36971,2705.3,2705.1,0.36972]
[1729436582276,0.36971,2705.3,2704.9,0.36974]
[1729436582277,0.36973,2705.1,2704.9,0.36974]
[1729436582683,0.6728,2705.2,2704.8,0.6119]
[1729436583076,0.36974,2705.0,2704.9,0.36974]
[1729436583274,3.57754,2705.0,2704.8,0.6119]
[1729436583689,3.57754,2705.0,2704.9,0.36975]
[1729436584186,3.57754,2705.0,2704.8,0.6119]
[1729436584187,0.36975,2704.9,2704.8,0.6119]
[1729436584391,0.36975,2704.9,2704.8,0.36976]
[1729436584691,0.36895,2704.9,2704.7,0.36977]
[1729436584886,0.36975,2704.9,2704.8,0.36976]
[1729436585291,3.2078,2705.0,2704.5,0.661]
[1729436585485,3.57758,2704.7,2704.6,0.36979]
[1729436585896,3.2078,2704.7,2704.5,0.661]
[1729436586099,0.36979,2704.6,2704.5,0.661]
[1729436586283,3.57758,2704.7,2704.5,1.0308]
[1729436586488,0.36979,2704.6,2704.5,1.0308]
[1729436586796,3.2078,2704.7,2704.5,0.661]
[1729436586996,0.36982,2704.4,2704.3,0.36983]
[1729436587195,3.57762,2704.4,2704.3,0.36983]
[1729436587787,3.2078,2704.4,2704.3,0.36983]